bitfinex-derivatives/quotes_ETHF0:USTF0_20250101
["timestamp","ask_amount","ask_price","bid_price","bid_amount"]
[1735693702930,0.79489,3358.9,3358.8,0.2983]
[1735693703934,0.4966,3358.9,3358.8,0.2983]
[1735693704738,0.94431266,3358.9,3358.8,0.2983]
[1735693704932,1.24260266,3358.9,3358.8,0.2983]
[1735693705836,0.94431266,3358.9,3358.8,0.2983]
[1735693707135,1.24260266,3358.9,3358.8,0.2983]
[1735693707332,0.94431266,3358.9,3358.8,0.2983]
[1735693707942,0.4966,3358.9,3358.8,0.2983]
[1735693709835,0.79489,3358.9,3358.8,0.2983]
[1735693710441,0.4966,3358.9,3358.8,0.2983]
[1735693711743,3.2078,3359.1,3358.5,1.77312]
[1735693711937,0.9866,3359.3,3359.1,0.29827]
[1735693711938,0.5163,3359.2,3359.1,0.29827]
[1735693712133,0.4968,3359.3,3359.2,0.29826]
[1735693712532,0.79506,3359.3,3359.2,0.29826]
[1735693713047,0.29826,3359.2,3359.1,0.79197]
[1735693715646,0.29826,3359.2,3359.1,0.29827]
[1735693716943,18.47306641,3359.2,3359.1,0.29827]
[1735693718744,0.29828,3359.1,3359.0,0.29828]
[1735693719044,18.47307641,3359.2,3358.8,0.2983]
[1735693719245,18.47307641,3359.2,3359.0,0.29827]
[1735693719444,4.87400832,3359.1,3359.0,0.29827]
[1735693723542,4.57573832,3359.1,3359.0,0.29827]
[1735693723847,3.96362208,3359.1,3359.0,0.29827]
[1735693725649,5.48296792,3359.3,3359.2,0.29826]
[1735693725650,4.31099094,3359.3,3359.2,0.29826]
[1735693725846,0.29827,3359.2,3359.1,0.29827]
[1735693726350,0.29827,3359.2,3358.8,3.2078]
[1735693726351,0.29829,3359.0,3358.9,0.29829]
[1735693726847,0.29829,3359.0,3358.8,3.2078]
[1735693726848,0.29829,3358.9,3358.8,3.2078]
[1735693727050,1.86486341,3358.9,3358.8,3.2078]
[1735693728148,1.56657341,3358.9,3358.6,4.62642076]
[1735693728346,1.56657341,3358.9,3358.6,0.29832]
[1735693728347,0.29831,3358.7,3358.6,0.29832]
[1735693729145,0.5207,3358.8,3358.3,1.0168]
[1735693729345,0.5266,3358.6,3358.3,1.0168]
[1735693729548,0.82492,3358.6,3358.5,0.29833]
[1735693730249,0.5266,3358.6,3358.1,7.83422076]
[1735693730447,0.29835,3358.2,3358.1,8.13258076]
[1735693730647,0.29835,3358.2,3358.1,3.50616]
[1735693730950,0.29835,3358.2,3358.1,3.2078]
[1735693731455,0.4873,3358.4,3358.2,0.29835]
[1735693731648,0.78564,3358.4,3358.3,0.29834]
[1735693731846,6.15823491,3358.3,3358.2,0.29834]
[1735693732154,6.67453491,3358.3,3358.2,0.29834]
[1735693732357,7.03572981,3358.3,3358.2,0.29834]
[1735693732556,6.73737981,3358.3,3358.2,0.29834]
[1735693732756,6.73737981,3358.3,3358.1,3.2078]
[1735693733053,6.67453491,3358.3,3358.2,0.29835]
[1735693733245,6.37618491,3358.3,3358.2,0.29835]
[1735693733454,0.96410204,3358.3,3358.2,0.29835]
[1735693734353,5.64871593,3358.3,3358.2,0.29835]
[1735693735448,0.96410204,3358.3,3358.2,0.29835]
[1735693735855,0.44780204,3358.3,3358.2,0.29835]
[1735693736051,0.44780204,3358.3,3358.2,0.77885]
[1735693736244,4.68461389,3358.4,3358.2,0.77885]
[1735693736245,4.68461389,3358.4,3358.3,0.29834]
[1735693736443,4.68461389,3358.4,3358.3,2.55156036]
[1735693736646,3.51298534,3358.4,3358.3,2.55156036]
[1735693738051,0.29829,3359.0,3358.6,0.29832]
[1735693738052,3.51298534,3358.7,3358.6,0.29832]
[1735693738653,3.51298534,3358.7,3358.6,0.79992]
[1735693739455,0.2983,3358.8,3358.7,0.2983]
[1735693739954,0.2983,3358.8,3358.6,0.5016]
[1735693739955,0.5182,3359.1,3358.6,0.5016]
[1735693740160,0.29829,3359.0,3358.9,0.29829]
[1735693740349,0.2983,3358.9,3358.8,0.2983]
[1735693741357,0.29831,3358.8,3358.7,0.2983]
[1735693742657,0.29831,3358.7,3358.6,0.29831]
[1735693742958,0.78671,3358.7,3358.6,0.29831]
[1735693743254,0.4884,3358.7,3358.6,0.29831]
[1735693743461,0.78671,3358.7,3358.6,0.29831]
[1735693746263,0.4884,3358.7,3358.3,4.62642076]
[1735693746554,0.29834,3358.4,3358.3,4.62642076]
[1735693746759,5.75936036,3358.4,3358.3,4.62642076]
[1735693746954,5.75936036,3358.4,3358.3,2.11672076]
[1735693748267,5.75936036,3358.4,3357.9,0.29837]
[1735693748268,16.33555919,3358.4,3357.9,0.29837]
[1735693748562,0.29837,3358.0,3357.9,0.29837]
[1735693749267,10.34238013,3358.0,3357.9,0.29837]
[1735693749657,10.34238013,3358.0,3357.5,3.7346]
[1735693749956,0.5156,3357.9,3357.8,0.29838]
[1735693750464,0.29839,3357.8,3357.7,0.2984]
[1735693750855,1.5369,3357.9,3357.5,3.2078]
[1735693751056,1.5369,3357.9,3357.6,0.2984]
[1735693751057,0.2984,3357.7,3357.6,0.2984]
[1735693751457,0.29839,3357.8,3357.7,0.29839]
[1735693751967,6.1598852,3357.8,3357.7,0.29839]
[1735693753565,4.68573941,3357.8,3357.7,0.29839]
[1735693753768,4.98412941,3357.8,3357.7,0.29839]
[1735693754163,4.68573941,3357.8,3357.5,3.2078]
[1735693754361,0.29842,3357.5,3357.3,0.29843]
[1735693754563,0.29841,3357.6,3357.4,0.29842]
[1735693755763,0.29841,3357.6,3357.2,0.4794]
[1735693755970,0.29841,3357.6,3357.5,0.29842]
[1735693759078,3.51336341,3358.0,3357.8,0.29839]
[1735693759270,3.51336341,3358.0,3357.4,5.46102036]
[1735693759271,3.51336341,3358.0,3357.9,0.29838]
[1735693760471,7.4862926,3358.3,3357.4,5.46102036]
[1735693760472,0.4921,3358.3,3357.4,5.46102036]
[1735693760678,0.29836,3358.2,3358.1,0.29836]
[1735693761874,0.29839,3357.9,3357.8,0.29839]
[1735693762468,3.51336341,3358.2,3357.4,4.93727]
[1735693762671,0.29836,3358.1,3358.0,0.29836]
[1735693762866,3.51336341,3358.2,3357.4,7.19049036]
[1735693763067,4.98409941,3358.2,3358.1,0.29836]
[1735693763270,4.68573941,3358.2,3358.1,0.29836]
[1735693764574,3.50949802,3358.2,3358.1,0.29836]
[1735693765967,3.50949802,3358.3,3358.2,0.29835]
[1735693767582,3.50949802,3358.7,3358.6,0.29832]
[1735693767881,4.01179802,3358.7,3358.6,0.29832]
[1735693768571,0.5023,3358.7,3358.6,0.29832]
[1735693774383,3.6926,3358.8,3358.5,0.4974]
[1735693774578,2.34135802,3358.9,3358.5,4.45102]
[1735693774887,2.34135802,3358.9,3358.8,0.2983]
[1735693776479,1.54875802,3358.9,3358.8,0.2983]
[1735693776677,2.76565604,3359.1,3359.0,0.29828]
[1735693776882,2.34070134,3359.6,3359.5,0.29824]
[1735693777780,0.93610134,3359.6,3359.5,8.50604]
[1735693777981,2.76565604,3359.7,3359.6,0.29823]
[1735693777982,0.03440738,3359.7,3359.6,0.29823]
[1735693778284,6.9941926,3360.5,3359.6,2.25322036]
[1735693778285,0.5283,3360.4,3359.6,2.25322036]
[1735693778482,0.5283,3360.4,3360.3,0.29817]
[1735693778685,0.5283,3360.4,3360.3,3.50597]
[1735693780580,0.498,3360.8,3360.7,0.29813]
[1735693782582,0.4864,3361.0,3360.9,0.29811]
[1735693784885,5.96189941,3361.5,3360.9,2.25322036]
[1735693784886,5.66383941,3361.5,3360.9,2.25322036]
[1735693785194,5.17923941,3361.5,3361.4,0.29807]
[1735693786087,4.68573941,3361.5,3361.4,0.29807]
[1735693786279,3.2078,3361.9,3361.8,0.29803]
[1735693786280,0.4935,3361.9,3361.8,0.29803]
[1735693802619,0.4935,3361.9,3361.8,2.55125036]
[1735693803303,0.4935,3361.9,3361.8,0.29803]
[1735693812813,0.29797,3362.6,3362.4,0.29797]
[1735693813010,1.5222,3362.5,3362.4,0.29797]
[1735693815119,1.0254,3362.5,3362.4,0.29797]
[1735693815312,0.5,3362.5,3362.4,0.29797]
[1735693815616,1.0356,3362.9,3362.4,2.25322036]
[1735693815817,1.0356,3362.9,3362.8,0.29795]
[1735693816120,0.4942,3363.1,3363.0,0.29793]
[1735693816309,0.29786,3363.8,3363.0,0.29793]
[1735693816310,1.0356,3363.5,3363.4,0.29789]
[1735693818215,0.29789,3363.4,3363.2,0.2979]
[1735693818618,0.29792,3363.1,3362.8,0.29794]
[1735693818809,0.29793,3363.0,3362.8,0.29794]
[1735693819207,0.5318,3362.9,3362.8,0.29794]
[1735693823717,0.29795,3362.8,3362.2,3.2078]
[1735693823912,2.75542036,3362.7,3362.2,3.2078]
[1735693824116,0.29799,3362.3,3362.2,3.2078]
[1735693824322,2.75542036,3362.7,3362.2,3.2078]
[1735693824624,0.29797,3362.5,3362.3,0.29799]
[1735693825131,0.5313,3362.4,3362.2,3.2078]
[1735693825421,0.29799,3362.3,3362.2,3.2078]
[1735693826119,0.29799,3362.3,3362.2,3.5058]
[1735693826520,5.51502941,3362.4,3362.3,0.29799]
[1735693827721,0.82929,3362.4,3362.3,0.29799]
[1735693828716,0.5313,3362.4,3362.3,0.29799]
[1735693828917,6.3927952,3362.4,3362.3,0.29799]
[1735693829821,0.5313,3362.4,3362.3,0.29799]
[1735693830627,0.82928,3362.4,3362.3,0.29799]
[1735693830828,0.5313,3362.4,3362.3,0.29799]
[1735693833532,0.5313,3362.4,3362.2,3.2078]
[1735693833729,0.82929,3362.4,3362.2,3.50579]
[1735693834825,0.29799,3362.3,3362.2,3.50579]
[1735693835131,0.5313,3362.4,3362.2,3.2078]
[1735693835732,0.29799,3362.3,3362.2,3.5058]
[1735693836030,0.82929,3362.4,3362.3,0.29799]
[1735693836631,0.5313,3362.4,3362.3,0.29799]
[1735693836930,5.20553374,3362.4,3362.3,0.29799]
[1735693837123,5.50351374,3362.4,3362.3,0.29799]
[1735693838232,0.82928,3362.4,3362.3,0.29799]
[1735693841724,5.50351374,3362.4,3362.3,0.29799]
[1735693842934,5.50351374,3362.4,3362.2,0.298]
[1735693842935,0.298,3362.3,3362.2,0.298]
[1735693843733,0.29801,3362.2,3362.1,0.298]
[1735693847032,0.5313,3362.4,3361.6,3.2078]
[1735693847235,0.5313,3362.4,3361.5,7.01027897]
[1735693847236,5.96542036,3362.1,3361.5,7.01027897]
[1735693847438,1.6918,3362.0,3361.5,7.01027897]
[1735693847639,0.29805,3361.6,3361.5,7.01027897]
[1735693849338,3.2078,3361.7,3361.1,11.86545752]
[1735693849539,0.4849,3361.5,3360.6,10.21807897]
[1735693849843,0.5025,3361.4,3360.6,10.21807897]
[1735693850038,1.0346,3361.4,3360.6,10.21807897]
[1735693850243,0.2981,3361.2,3361.0,0.2981]
[1735693850652,0.2981,3361.2,3360.6,3.2078]
[1735693850653,1.0346,3361.4,3360.7,2.99856036]
[1735693850839,3.28782036,3361.4,3360.6,3.2078]
[1735693851034,0.29811,3361.0,3360.8,0.29812]
[1735693851441,0.4998,3360.9,3360.8,0.29812]
[1735693851642,0.79792,3360.9,3360.8,0.29812]
[1735693851840,0.79792,3360.9,3360.7,0.29813]
[1735693852047,0.79792,3360.9,3360.6,7.01027897]
[1735693852336,0.79792,3360.9,3360.7,0.29813]
[1735693852542,0.4998,3360.9,3360.6,7.01027897]
[1735693852742,5.95872036,3360.8,3360.1,7.01027897]
[1735693852952,0.5276,3360.7,3360.6,0.29814]
[1735693854655,0.29815,3360.6,3360.4,0.29816]
[1735693855457,0.29815,3360.5,3360.3,0.29817]
[1735693855750,0.29815,3360.5,3360.4,0.29816]
[1735693855952,0.5276,3360.7,3360.0,3.2078]
[1735693856151,0.82574,3360.7,3360.4,0.29815]
[1735693856353,0.5276,3360.7,3360.4,0.29815]
[1735693856849,0.29814,3360.6,3360.4,0.29815]
[1735693857555,0.5276,3360.7,3360.0,3.2078]
[1735693857853,0.5276,3360.7,3360.5,0.29815]
[1735693857854,0.82574,3360.7,3360.5,0.29815]
[1735693858447,0.82574,3360.7,3360.0,3.2078]
[1735693858653,0.29815,3360.6,3360.3,0.29816]
[1735693858852,0.29815,3360.6,3360.4,0.29816]
[1735693859651,0.5276,3360.7,3360.6,0.29814]
[1735693864058,0.2981,3361.1,3360.7,0.29813]
[1735693864255,0.2981,3361.1,3360.4,3.2078]
[1735693864256,1.0134,3361.1,3360.4,3.2078]
[1735693864453,1.0134,3361.1,3361.0,0.29811]
[1735693864760,1.3115,3361.1,3360.9,0.29811]
[1735693865056,1.0134,3361.1,3360.4,3.2078]
[1735693865258,0.29811,3361.0,3360.4,3.2078]
[1735693865453,0.29811,3361.0,3360.8,0.29812]
[1735693865850,3.2078,3361.7,3361.1,0.2981]
[1735693866051,1.0021,3361.6,3360.9,2.25322036]
[1735693866253,1.0021,3361.6,3361.5,0.29806]
[1735693866552,4.01306707,3362.0,3361.9,0.29803]
[1735693867456,0.4894,3362.1,3362.0,0.29802]
[1735693869057,2.74262036,3362.1,3361.6,3.2078]
[1735693869462,0.78741,3362.1,3362.0,0.29802]
[1735693870060,0.29802,3362.0,3361.9,0.29802]
[1735693870554,0.4894,3362.1,3361.1,3.95303]
[1735693870759,0.4894,3362.1,3361.7,0.29804]
[1735693870760,2.74262036,3362.1,3361.7,0.29804]
[1735693871065,0.29803,3361.9,3361.7,0.29804]
[1735693871458,0.5026,3361.8,3361.7,0.29804]
[1735693871965,0.29805,3361.7,3361.6,0.29805]
[1735693872166,0.5257,3361.7,3361.6,0.29805]
[1735693873952,0.5257,3361.7,3361.4,0.29807]
[1735693874158,0.29805,3361.6,3361.5,0.29806]
[1735693874866,0.5257,3361.7,3361.1,3.2078]
[1735693875262,0.29806,3361.6,3361.1,3.2078]
[1735693875467,0.29806,3361.6,3361.4,0.29807]
[1735693875663,0.5257,3361.7,3361.4,0.29807]
[1735693875868,0.29806,3361.5,3361.4,0.29807]
[1735693877269,0.5257,3361.7,3361.1,3.2078]
[1735693877458,0.29809,3361.2,3361.1,3.2078]
[1735693877663,0.29809,3361.2,3361.1,0.29809]
[1735693878368,3.7356,3361.3,3360.5,0.74538]
[1735693878563,4.03369,3361.3,3361.2,0.29809]
[1735693878969,0.29809,3361.2,3361.1,0.29809]
[1735693879466,0.29811,3361.0,3360.9,0.29811]
[1735693879668,0.2981,3361.1,3360.9,0.29811]
[1735693879863,0.2981,3361.1,3360.5,0.74538]
[1735693880059,0.2981,3361.1,3360.9,0.29811]
[1735693880565,0.48,3361.0,3360.9,0.29811]
[1735693880862,0.29812,3360.9,3360.5,0.29815]
[1735693881069,0.48,3361.0,3360.4,3.2078]
[1735693881265,1.30563,3360.8,3360.7,0.29813]
[1735693882166,1.30563,3360.8,3360.4,3.2078]
[1735693882167,0.29814,3360.7,3360.5,0.29815]
[1735693882370,0.29813,3360.7,3360.6,0.29814]
[1735693883271,1.0075,3360.8,3360.6,0.29814]
[1735693883462,1.0075,3360.8,3360.0,6.53141036]
[1735693883668,0.29814,3360.6,3360.5,0.29815]
[1735693883972,1.0075,3360.8,3360.0,5.46102036]
[1735693884171,0.29816,3360.5,3360.0,3.2078]
[1735693884363,0.4956,3360.4,3360.0,3.2078]
[1735693884575,0.4956,3360.4,3360.3,0.29817]
[1735693891868,1.0075,3360.8,3360.0,5.46102036]
[1735693892068,1.0075,3360.8,3360.7,0.29813]
[1735693892469,0.2981,3361.1,3360.5,0.0351]
[1735693892673,1.5259,3361.2,3361.0,0.29811]
[1735693892869,0.2981,3361.1,3361.0,0.29811]
[1735693894078,6.71626707,3361.7,3360.8,3.2078]
[1735693894271,0.82947,3361.5,3361.4,0.29807]
[1735693894672,0.29807,3361.4,3361.3,0.29808]
[1735693895673,0.5314,3361.5,3361.3,0.29808]
[1735693895870,0.29807,3361.4,3360.9,4.96984173]
[1735693896074,0.29807,3361.4,3361.2,0.29808]
[1735693896472,0.29807,3361.4,3361.3,0.29808]
[1735693897178,0.82947,3361.5,3361.4,0.29807]
[1735693897676,0.82947,3361.5,3361.3,0.29807]
[1735693897877,0.29807,3361.4,3361.3,0.29807]
[1735693898784,0.5314,3361.5,3360.9,0.3328]
[1735693898974,0.29808,3361.3,3361.2,0.29809]
[1735693899279,0.5314,3361.5,3360.8,3.2078]
[1735693899477,0.5295,3361.2,3361.1,0.29809]
[1735693902876,0.82759,3361.2,3361.0,0.2981]
[1735693903080,0.5238,3361.1,3361.0,0.2981]
[1735693904695,0.5295,3361.2,3361.1,0.2981]
[1735693904883,0.5238,3361.3,3360.8,3.2078]
[1735693905186,0.5238,3361.3,3361.2,0.29809]
[1735693906489,0.5314,3361.5,3361.1,2.25322036]
[1735693906686,0.5314,3361.5,3361.4,0.29807]
[1735693911997,0.5266,3361.8,3361.1,4.63704173]
[1735693912185,4.03506707,3361.8,3361.7,0.29804]
[1735693912889,4.33310707,3361.8,3361.7,0.29804]
[1735693913488,0.82464,3361.8,3361.7,0.29804]
[1735693914890,0.5266,3361.8,3361.7,0.29804]
[1735693915296,0.82464,3361.8,3361.7,0.29804]
[1735693916195,4.33362312,3361.8,3361.7,0.29804]
[1735693917191,0.82464,3361.8,3361.7,0.29804]
[1735693918901,0.29805,3361.7,3361.6,0.29805]
[1735693920396,0.5266,3361.8,3361.0,4.63704173]
[1735693920596,0.29808,3361.4,3361.3,0.29807]
[1735693922991,0.29808,3361.3,3361.2,0.29808]
[1735693923291,0.29808,3361.3,3360.9,0.29811]
[1735693923292,0.2981,3361.1,3360.9,0.29811]
[1735693923497,0.2981,3361.1,3361.0,0.29811]
[1735693925597,0.82129,3361.2,3361.1,0.2981]
[1735693926194,1.0736,3361.3,3361.2,0.29809]
[1735693926501,0.5671,3361.5,3361.4,0.29807]
[1735693930804,3.39862411,3361.8,3361.3,2.25322036]
[1735693931105,2.33962411,3361.8,3361.7,0.29804]
[1735693931300,2.33962411,3361.9,3361.8,0.29804]
[1735693931699,2.33962411,3361.9,3361.8,5.29804]
[1735693932997,3.2078,3362.5,3361.8,9.96315166]
[1735693933201,3.2078,3362.5,3362.4,0.29798]
[1735693933704,3.2078,3362.5,3361.8,4.96315166]
[1735693933901,3.50578,3362.5,3362.3,0.29799]
[1735693934205,2.33962411,3362.6,3362.5,0.29797]
[1735693934504,2.33962411,3362.7,3362.6,0.29796]
[1735693935496,2.33962411,3362.7,3362.6,2.55118036]
[1735693935700,0.5483,3363.1,3363.0,0.29793]
[1735693936405,5.54742411,3363.3,3363.2,0.29791]
[1735693937202,3.2078,3363.3,3362.8,3.2078]
[1735693937506,3.2078,3363.3,3362.9,0.29794]
[1735693937703,3.2078,3363.3,3362.7,4.6443896]
[1735693938010,3.50571,3363.3,3363.0,0.29792]
[1735693938410,0.29791,3363.2,3362.9,0.29793]
[1735693938705,0.29792,3363.2,3362.9,0.29793]
[1735693939008,3.2078,3363.3,3363.1,0.29791]
[1735693939311,3.2078,3363.3,3363.1,0.29792]
[1735693939609,3.50571,3363.3,3362.9,0.29793]
[1735693940605,0.29792,3363.2,3362.9,0.29793]
[1735693941706,0.29792,3363.2,3362.4,3.2078]
[1735693941707,0.29794,3362.9,3362.4,3.2078]
[1735693941909,1.1046,3362.8,3362.6,0.29796]
[1735693942109,1.6519,3362.8,3362.6,0.29796]
[1735693942404,1.6519,3362.8,3362.7,0.29796]
[1735693950425,1.94985,3362.8,3362.7,0.29796]
[1735693950723,1.94985,3362.8,3362.6,0.29796]
[1735693950925,1.6519,3362.8,3362.7,0.29796]
[1735693951819,1.94985,3362.8,3362.1,0.74502]
[1735693952020,1.94985,3362.8,3362.7,0.29796]
[1735693952825,1.6519,3362.8,3362.7,0.29796]
[1735693953126,6.32613374,3362.8,3362.7,0.29796]
[1735693953529,6.62408374,3362.8,3362.6,0.29796]
[1735693953736,6.62408374,3362.8,3362.7,0.29796]
[1735693954025,6.32613374,3362.8,3362.7,0.29796]
[1735693956825,1.6519,3362.8,3362.7,0.29796]
[1735693961137,1.65407993,3362.8,3362.7,0.29796]
[1735693963433,1.10087993,3362.8,3362.7,0.29796]
[1735693963634,0.54947993,3362.8,3362.7,0.29796]
[1735693966539,0.84742993,3362.8,3362.7,0.29796]
[1735693967232,0.54947993,3362.8,3362.7,0.29796]
[1735693967940,0.84742993,3362.8,3362.7,0.29796]
[1735693968140,0.54947993,3362.8,3362.7,0.29796]
[1735693968735,4.05522993,3362.8,3362.7,0.29796]
[1735693970439,3.75727993,3362.8,3362.7,0.29796]
[1735693971937,0.54947993,3362.8,3362.7,0.29796]
[1735693972744,5.22371367,3362.8,3362.7,0.29796]
[1735693976955,10.3307272,3362.8,3362.7,0.29796]
[1735693978049,9.7834272,3362.8,3362.7,0.29796]
[1735693978253,5.86367513,3362.8,3362.7,0.29796]
[1735693979344,5.18437513,3362.8,3362.7,0.29796]
[1735693979745,4.6871537,3362.8,3362.7,0.68856]
[1735693981253,2.34347373,3363.4,3363.3,0.2979]
[1735693982152,5.11501059,3363.5,3363.1,4.64712457]
[1735693982453,5.11501059,3363.5,3363.4,0.29789]
[1735693984457,3.51521059,3363.5,3363.4,0.29789]
[1735693985046,1.08853059,3363.5,3363.4,5.29789]
[1735693985246,5.9e-07,3363.5,3363.4,5.29789]
[1735693985553,3.05586429,3364.1,3363.6,0.29788]
[1735693985750,2.34218481,3363.8,3363.7,0.29787]
[1735693985953,2.34218481,3363.8,3363.7,3.50567]
[1735693987159,2.34218481,3364.4,3364.3,0.29781]
[1735693987959,2.34218481,3364.5,3364.4,0.2978]
[1735693990254,2.63998481,3364.5,3364.3,0.29781]
[1735693990755,5.54998481,3364.5,3363.7,3.2078]
[1735693990951,3.2078,3364.5,3363.7,3.2078]
[1735693991260,2.25322036,3364.4,3363.7,3.50566]
[1735693991762,0.29785,3363.9,3363.7,3.50566]
[1735693992060,1.5854,3363.8,3363.7,3.50566]
[1735693992554,1.88326,3363.8,3363.7,1.5306]
[1735693992759,1.5854,3363.8,3363.7,1.5306]
[1735693992960,1.88326,3363.8,3363.7,1.82847]
[1735693993160,1.88326,3363.8,3363.7,1.5306]
[1735693993464,0.29788,3363.6,3363.4,0.29789]
[1735693993658,3.50568,3363.6,3363.4,0.29789]
[1735693994163,0.29788,3363.5,3363.0,2.25322036]
[1735693994464,3.50568,3363.6,3363.4,0.29789]
[1735693995468,0.29788,3363.5,3363.3,0.2979]
[1735693996163,0.2979,3363.4,3363.2,0.29791]
[1735693996353,0.29789,3363.5,3363.3,0.2979]
[1735693997671,0.29789,3363.4,3363.2,0.29791]
[1735693998062,0.29789,3363.4,3362.7,2.76152036]
[1735693998267,3.2078,3363.2,3363.1,0.29792]
[1735694001875,2.34218481,3363.5,3363.0,2.25322036]
[1735694002074,2.34218481,3363.5,3363.4,0.29789]
[1735694002573,2.34218481,3363.5,3363.0,2.25322036]
[1735694002574,3.2078,3363.6,3363.5,0.29788]
[1735694004074,5.54214284,3363.6,3363.0,2.81102036]
[1735694004279,5.54214284,3363.6,3363.0,2.25322036]
[1735694004577,0.29789,3363.5,3363.4,0.29789]
[1735694004968,5.54214284,3363.6,3363.5,0.29788]
[1735694005176,0.29789,3363.5,3363.4,0.29789]
[1735694005784,3.2078,3363.6,3363.0,2.25322036]
[1735694005984,3.50568,3363.6,3363.5,0.29788]
[1735694006380,3.2078,3363.6,3363.5,0.29788]
[1735694006980,3.50568,3363.6,3363.5,0.29788]
[1735694007286,3.2078,3363.6,3363.5,0.29788]
[1735694007683,1.5854,3363.8,3363.7,0.29787]
[1735694011684,1.88326,3363.8,3363.7,0.29787]
[1735694011983,0.29788,3363.6,3363.5,0.29788]
[1735694012487,0.29788,3363.6,3363.4,0.29789]
[1735694015288,1.5854,3363.8,3363.0,2.25322036]
[1735694015495,0.2979,3363.4,3363.2,0.29791]
[1735694015685,3.50569,3363.5,3363.3,0.2979]
[1735694016987,0.2979,3363.4,3363.2,0.29791]
[1735694017288,0.2979,3363.4,3362.8,0.5371]
[1735694017491,3.50569,3363.5,3363.3,0.2979]
[1735694017993,0.29789,3363.4,3363.3,0.2979]
[1735694018695,5.84043192,3363.5,3363.3,0.2979]
[1735694019089,5.54254192,3363.5,3362.8,0.5371]
[1735694019291,0.2979,3363.4,3362.8,0.5371]
[1735694019594,0.2979,3363.4,3363.3,0.2979]
[1735694020600,2.63264192,3363.4,3363.3,0.2979]
[1735694021794,2.63264192,3363.4,3362.5,4.63299094]
[1735694021795,4.58796228,3363.4,3362.5,4.63299094]
[1735694021991,3.2078,3363.1,3362.5,4.63299094]
[1735694022293,0.29794,3362.9,3362.8,0.29794]
[1735694024096,3.35534192,3363.0,3362.9,0.29794]
[1735694024490,1.0206,3363.0,3362.9,0.29794]
[1735694026194,1.31853,3363.0,3362.9,0.29794]
[1735694027799,1.0206,3363.0,3362.9,0.29794]
[1735694028099,1.5267,3363.0,3362.9,0.29794]
[1735694028896,1.5267,3363.0,3362.9,0.79794]
[1735694029098,1.82463,3363.0,3362.9,0.79794]
[1735694037600,4.16261533,3363.0,3362.9,0.79794]
[1735694038200,3.86468533,3363.0,3362.9,0.79794]
[1735694038405,4.16261533,3363.0,3362.9,0.79794]
[1735694040198,1.82463,3363.0,3362.9,0.79794]
[1735694046612,1.5267,3363.0,3362.9,0.79794]
[1735694050214,1.87786031,3363.0,3362.9,0.79794]
[1735694051312,2.17579031,3363.0,3362.9,0.79794]
[1735694053012,4.51710737,3363.0,3362.9,0.79794]
[1735694054612,4.21917737,3363.0,3362.9,0.79794]
[1735694054809,2.86211706,3363.0,3362.9,0.79794]
[1735694055008,2.34131706,3363.0,3362.9,0.79794]
[1735694055207,2.34131706,3363.0,3362.9,1.87274]
[1735694056709,5.52513412,3363.3,3363.1,0.29792]
[1735694056710,2.34131706,3363.2,3363.1,0.29792]
[1735694056917,2.63922706,3363.2,3363.1,0.29792]
[1735694058014,0.29791,3363.2,3363.1,0.29792]
[1735694059314,4.05657559,3363.3,3362.9,5.13299094]
[1735694059616,0.29793,3363.0,3362.9,0.5]
[1735694060014,0.80623,3363.0,3362.9,0.5]
[1735694061119,4.31820559,3363.0,3362.9,0.5]
[1735694062219,4.02027559,3363.0,3362.9,0.79794]
[1735694062516,0.5083,3363.0,3362.9,0.79794]
[1735694064216,1.0484,3363.0,3362.9,0.79794]
[1735694065418,6.91073778,3363.0,3362.9,0.79794]
[1735694069616,4.5665144,3363.0,3362.9,10.71368181]
[1735694076122,1.0484,3363.0,3362.9,5.45294327]
[1735694076623,1.34633,3363.0,3362.9,5.15500327]
[1735694078020,7.165498,3363.0,3362.9,0.5]
[1735694080218,1.34633,3363.0,3362.9,0.5]
[1735694081625,8.3405226,3363.0,3362.9,0.5]
[1735694082926,14.15847203,3363.0,3362.9,0.5]
[1735694083929,8.3405226,3363.0,3362.9,0.5]
[1735694085622,6.38654328,3363.0,3362.9,0.5]
[1735694087222,6.08861328,3363.0,3362.9,0.5]
[1735694087528,6.08861328,3363.0,3362.9,0.79794]
[1735694087825,6.08861569,3363.0,3362.9,0.79794]
[1735694088027,1.39935293,3363.0,3362.9,0.79794]
[1735694090125,1.69728293,3363.0,3362.9,0.79794]
[1735694092231,1.34633,3363.0,3362.9,0.79794]
[1735694092824,1.34633,3363.0,3362.9,0.5]
[1735694093128,2.41019754,3363.0,3362.9,0.5]
[1735694093331,2.76115047,3363.0,3362.9,0.5]
[1735694093524,2.41019754,3363.0,3362.9,0.5]
[1735694095030,8.22606357,3363.0,3362.9,0.5]
[1735694099736,15.22025617,3363.0,3362.9,0.5]
[1735694100641,9.75557232,3363.0,3362.9,0.5]
[1735694100839,10.23437475,3363.0,3362.9,0.5]
[1735694105237,3.24018215,3363.0,3362.9,0.5]
[1735694106642,7.92889566,3363.0,3362.9,0.5]
[1735694107938,0.29798,3362.4,3362.3,4.65500327]
[1735694108246,5.76664754,3362.4,3362.3,4.65500327]
[1735694109140,5.46866754,3362.4,3361.8,4.65500327]
[1735694109339,3.2078,3362.0,3361.9,1.89179754]
[1735694109543,0.298,3362.2,3361.9,1.59376754]
[1735694109746,0.298,3362.2,3362.1,0.29801]
[1735694110247,3.51514011,3362.2,3361.9,1.59376754]
[1735694110440,3.81314011,3362.2,3362.1,0.29801]
[1735694111040,3.51514011,3362.2,3362.1,0.29801]
[1735694111245,3.51514011,3362.2,3362.1,1.36187754]
[1735694111742,3.51514011,3362.3,3362.1,1.06386754]
[1735694111941,3.51514011,3362.3,3362.2,0.7936]